[Event "Late-Titled-Tuesday-Blitz-February-20-2024"]
[Site "Chess.com"]
[Date "2024.02.20"]
[Round "5"]
[White "JosephRyan"]
[Black "Bkmzzzzz"]
[Result "1-0"]
[WhiteElo "2190"]
[BlackElo "2395"]
[TimeControl "180+1"]
[EndTime "14:55:20 PST"]
[Termination "JosephRyan won by checkmate"]

1. e4 {[%clk 0:03:00.9]} 1... d6 {[%clk 0:03:00.2]} 2. d4 {[%clk 0:02:59.8]}
2... Nf6 {[%clk 0:03:00.9]} 3. Bd3 {[%clk 0:02:59.3]} 3... e5 {[%clk 0:03:01]}
4. c3 {[%clk 0:02:58.7]} 4... Be7 {[%clk 0:03:01.2]} 5. Nf3 {[%clk 0:02:57.9]}
5... Nbd7 {[%clk 0:03:00.7]} 6. O-O {[%clk 0:02:57.5]} 6... O-O {[%clk
0:03:00.7]} 7. Nbd2 {[%clk 0:02:56.9]} 7... c6 {[%clk 0:03:00.7]} 8. Re1 {[%clk
0:02:56.7]} 8... Re8 {[%clk 0:02:59.2]} 9. Nf1 {[%clk 0:02:56.5]} 9... Bf8
{[%clk 0:02:56.9]} 10. Ng3 {[%clk 0:02:56.5]} 10... Qc7 {[%clk 0:02:51]} 11. Bc2
{[%clk 0:02:56.2]} 11... d5 {[%clk 0:02:07.8]} 12. dxe5 {[%clk 0:02:48.8]} 12...
Nxe5 {[%clk 0:02:06.9]} 13. Nxe5 {[%clk 0:02:47.5]} 13... Qxe5 {[%clk
0:02:05.9]} 14. f4 {[%clk 0:02:46]} 14... Qc7 {[%clk 0:01:49.4]} 15. e5 {[%clk
0:02:45.8]} 15... Qb6+ {[%clk 0:01:40.8]} 16. Be3 {[%clk 0:02:43]} 16... Bc5
{[%clk 0:01:41.4]} 17. Bxc5 {[%clk 0:02:36.2]} 17... Qxc5+ {[%clk 0:01:41.5]}
18. Qd4 {[%clk 0:02:36.1]} 18... Qxd4+ {[%clk 0:01:37.6]} 19. cxd4 {[%clk
0:02:36.3]} 19... Nd7 {[%clk 0:01:36.1]} 20. b4 {[%clk 0:02:30]} 20... Nb6
{[%clk 0:01:35.6]} 21. Bd3 {[%clk 0:02:23.2]} 21... Bd7 {[%clk 0:01:24]} 22. h3
{[%clk 0:02:16.4]} 22... a6 {[%clk 0:01:10]} 23. Kh2 {[%clk 0:02:14.7]} 23...
Na4 {[%clk 0:01:08.6]} 24. Rac1 {[%clk 0:02:03.1]} 24... b5 {[%clk 0:01:07]} 25.
Nh5 {[%clk 0:01:58.1]} 25... a5 {[%clk 0:01:04.8]} 26. a3 {[%clk 0:01:57.2]}
26... Nb2 {[%clk 0:01:02.1]} 27. Bf1 {[%clk 0:01:53.4]} 27... axb4 {[%clk
0:01:02.2]} 28. axb4 {[%clk 0:01:53]} 28... Ra4 {[%clk 0:01:02.1]} 29. Ra1
{[%clk 0:01:32.9]} 29... Rea8 {[%clk 0:00:43.9]} 30. Rxa4 {[%clk 0:01:26.7]}
30... Rxa4 {[%clk 0:00:44.8]} 31. g4 {[%clk 0:01:24.2]} 31... Rxb4 {[%clk
0:00:43.1]} 32. f5 {[%clk 0:01:22.3]} 32... Rxd4 {[%clk 0:00:38.5]} 33. e6
{[%clk 0:01:19]} 33... fxe6 {[%clk 0:00:39.4]} 34. fxe6 {[%clk 0:01:19.1]} 34...
Be8 {[%clk 0:00:39.9]} 35. Ng3 {[%clk 0:01:19.5]} 35... c5 {[%clk 0:00:31]} 36.
Nf5 {[%clk 0:01:18.5]} 36... Re4 {[%clk 0:00:31.3]} 37. Rxe4 {[%clk 0:00:52.8]}
37... dxe4 {[%clk 0:00:32.2]} 38. Nd6 {[%clk 0:00:53.2]} 38... c4 {[%clk
0:00:19.7]} 39. Nxe8 {[%clk 0:00:51.4]} 39... Kf8 {[%clk 0:00:20.4]} 40. Nd6
{[%clk 0:00:50.6]} 40... c3 {[%clk 0:00:20.4]} 41. Nf5 {[%clk 0:00:42.8]} 41...
c2 {[%clk 0:00:20.4]} 42. e7+ {[%clk 0:00:42.9]} 42... Kf7 {[%clk 0:00:20.2]}
43. Bxb5 {[%clk 0:00:42.1]} 43... c1=Q {[%clk 0:00:17.7]} 44. e8=Q+ {[%clk
0:00:41.4]} 44... Kf6 {[%clk 0:00:18.3]} 45. Qe7+ {[%clk 0:00:39.6]} 45... Kg6
{[%clk 0:00:18.4]} 46. Be8# {[%clk 0:00:36.8]} 1-0

[Event "Late-Titled-Tuesday-Blitz-February-20-2024"]
[Site "Chess.com"]
[Date "2024.02.20"]
[Round "5"]
[White "icaughtacrab"]
[Black "FMOlexandrProhorov"]
[Result "0-1"]
[WhiteElo "2042"]
[BlackElo "2335"]
[TimeControl "180+1"]
[EndTime "14:55:21 PST"]
[Termination "FMOlexandrProhorov won by resignation"]

1. e4 {[%clk 0:03:00.9]} 1... c5 {[%clk 0:02:54]} 2. Nf3 {[%clk 0:03:01]} 2...
e6 {[%clk 0:02:54.3]} 3. c3 {[%clk 0:02:58.9]} 3... Nf6 {[%clk 0:02:53.5]} 4. e5
{[%clk 0:02:58.6]} 4... Nd5 {[%clk 0:02:52]} 5. d4 {[%clk 0:02:59.2]} 5... cxd4
{[%clk 0:02:51.8]} 6. cxd4 {[%clk 0:03:00.1]} 6... d6 {[%clk 0:02:50.7]} 7. Bb5+
{[%clk 0:02:52.1]} 7... Nc6 {[%clk 0:02:43.1]} 8. O-O {[%clk 0:02:51.7]} 8...
Be7 {[%clk 0:02:38.9]} 9. Bxc6+ {[%clk 0:02:46.9]} 9... bxc6 {[%clk 0:02:38.4]}
10. exd6 {[%clk 0:02:47.5]} 10... Qxd6 {[%clk 0:02:33.7]} 11. Nc3 {[%clk
0:02:48.4]} 11... O-O {[%clk 0:02:32.8]} 12. Ne4 {[%clk 0:02:30.5]} 12... Qd8
{[%clk 0:02:26.3]} 13. Be3 {[%clk 0:02:29.6]} 13... Rb8 {[%clk 0:02:15.3]} 14.
b3 {[%clk 0:02:29.2]} 14... Ba6 {[%clk 0:02:05.3]} 15. Re1 {[%clk 0:02:16]}
15... f5 {[%clk 0:01:49.2]} 16. Nc5 {[%clk 0:02:12.6]} 16... Bxc5 {[%clk
0:01:43.9]} 17. dxc5 {[%clk 0:02:13.5]} 17... Qf6 {[%clk 0:01:35.6]} 18. Bd4
{[%clk 0:02:10.3]} 18... Qh6 {[%clk 0:01:24.3]} 19. Ne5 {[%clk 0:01:57.8]} 19...
Rbc8 {[%clk 0:00:48.6]} 20. Qf3 {[%clk 0:01:51.9]} 20... Qf4 {[%clk 0:00:48.3]}
21. Qxf4 {[%clk 0:01:39.8]} 21... Nxf4 {[%clk 0:00:48.1]} 22. Rad1 {[%clk
0:01:35.8]} 22... Rfd8 {[%clk 0:00:46.3]} 23. Be3 {[%clk 0:01:32.6]} 23... Nd5
{[%clk 0:00:40]} 24. h3 {[%clk 0:01:06.2]} 24... h6 {[%clk 0:00:36.5]} 25. Ng6
{[%clk 0:01:00.7]} 25... Kf7 {[%clk 0:00:29.7]} 26. Ne5+ {[%clk 0:00:58.9]}
26... Kg8 {[%clk 0:00:29.8]} 27. Ng6 {[%clk 0:00:58.3]} 27... Kf7 {[%clk
0:00:29.9]} 28. Ne5+ {[%clk 0:00:58.7]} 28... Ke7 {[%clk 0:00:21.9]} 29. Ng6+
{[%clk 0:00:52.5]} 29... Kf6 {[%clk 0:00:21.6]} 30. Nf4 {[%clk 0:00:49]} 30...
Nxe3 {[%clk 0:00:17.5]} 31. Rxd8 {[%clk 0:00:44.8]} 31... Rxd8 {[%clk
0:00:17.6]} 32. Rxe3 {[%clk 0:00:45.7]} 32... Rd1+ {[%clk 0:00:13.3]} 33. Kh2
{[%clk 0:00:45.6]} 33... e5 {[%clk 0:00:11]} 34. Ne2 {[%clk 0:00:44.9]} 34...
Bxe2 {[%clk 0:00:06.1]} 35. Rxe2 {[%clk 0:00:45.1]} 35... Rc1 {[%clk 0:00:06.8]}
36. b4 {[%clk 0:00:43.3]} 36... Ke6 {[%clk 0:00:06.3]} 37. Kg3 {[%clk
0:00:38.9]} 37... Rc3+ {[%clk 0:00:05]} 38. Re3 {[%clk 0:00:37.2]} 38... f4+
{[%clk 0:00:04.5]} 39. Kf3 {[%clk 0:00:37.1]} 39... fxe3 {[%clk 0:00:04.7]} 40.
fxe3 {[%clk 0:00:38]} 40... Rc2 {[%clk 0:00:05.3]} 0-1

[Event "Late-Titled-Tuesday-Blitz-February-20-2024"]
[Site "Chess.com"]
[Date "2024.02.20"]
[Round "5"]
[White "Abund"]
[Black "WilsonPalencia21"]
[Result "1-0"]
[WhiteElo "2792"]
[BlackElo "2537"]
[TimeControl "180+1"]
[EndTime "14:55:24 PST"]
[Termination "Abund won on time"]

1. d4 {[%clk 0:03:00.9]} 1... Nf6 {[%clk 0:02:54.5]} 2. Nf3 {[%clk 0:02:59.5]}
2... c5 {[%clk 0:02:37.8]} 3. c3 {[%clk 0:02:58.6]} 3... d5 {[%clk 0:02:37.5]}
4. Bf4 {[%clk 0:02:54.8]} 4... Nc6 {[%clk 0:02:38]} 5. dxc5 {[%clk 0:02:46.9]}
5... a5 {[%clk 0:02:35.3]} 6. Na3 {[%clk 0:02:45]} 6... Bg4 {[%clk 0:02:20.8]}
7. Nb5 {[%clk 0:02:38.3]} 7... Rc8 {[%clk 0:02:17]} 8. a3 {[%clk 0:02:00.9]}
8... Bxf3 {[%clk 0:02:11.2]} 9. exf3 {[%clk 0:02:01.1]} 9... e5 {[%clk
0:02:11.1]} 10. Be3 {[%clk 0:01:58.1]} 10... Be7 {[%clk 0:01:59.4]} 11. Be2
{[%clk 0:01:56.2]} 11... O-O {[%clk 0:01:54.9]} 12. O-O {[%clk 0:01:56.5]} 12...
Re8 {[%clk 0:01:55.3]} 13. b4 {[%clk 0:01:52.3]} 13... h6 {[%clk 0:01:35]} 14.
Qb3 {[%clk 0:01:43.9]} 14... d4 {[%clk 0:01:25.2]} 15. Rfd1 {[%clk 0:01:42.3]}
15... axb4 {[%clk 0:01:13.9]} 16. axb4 {[%clk 0:01:28.2]} 16... Nd5 {[%clk
0:01:01.3]} 17. Bc4 {[%clk 0:01:09]} 17... Nxe3 {[%clk 0:00:30.5]} 18. Bxf7+
{[%clk 0:01:09]} 18... Kh8 {[%clk 0:00:28.1]} 19. fxe3 {[%clk 0:01:06.5]} 19...
Rf8 {[%clk 0:00:23]} 20. cxd4 {[%clk 0:00:54.8]} 20... exd4 {[%clk 0:00:20.4]}
21. exd4 {[%clk 0:00:52]} 21... Bf6 {[%clk 0:00:19.5]} 22. Bd5 {[%clk
0:00:50.9]} 22... Nxb4 {[%clk 0:00:18]} 23. Bxb7 {[%clk 0:00:41.4]} 23... Rb8
{[%clk 0:00:16.1]} 24. c6 {[%clk 0:00:37.5]} 24... Nd5 {[%clk 0:00:14.1]} 25.
Kh1 {[%clk 0:00:34.1]} 25... Nc7 {[%clk 0:00:08.8]} 26. Nc3 {[%clk 0:00:30.7]}
26... Qd6 {[%clk 0:00:03.5]} 27. Ne4 {[%clk 0:00:30.8]} 27... Qxc6 {[%clk
0:00:03.9]} 28. Rab1 {[%clk 0:00:19.9]} 28... Qd7 {[%clk 0:00:03.4]} 29. Nc5
{[%clk 0:00:19]} 29... Qd6 {[%clk 0:00:02.7]} 30. Qc4 {[%clk 0:00:18]} 30...
Rbe8 {[%clk 0:00:01.2]} 31. Be4 {[%clk 0:00:17.7]} 1-0

[Event "Late-Titled-Tuesday-Blitz-February-20-2024"]
[Site "Chess.com"]
[Date "2024.02.20"]
[Round "5"]
[White "zajka-molotok"]
[Black "GMRAVEN_ON_YOUTUBE"]
[Result "0-1"]
[WhiteElo "2522"]
[BlackElo "2761"]
[TimeControl "180+1"]
[EndTime "14:55:26 PST"]
[Termination "GMRAVEN_ON_YOUTUBE won on time"]

1. e4 {[%clk 0:02:55.4]} 1... c5 {[%clk 0:02:56.3]} 2. Nf3 {[%clk 0:02:55.2]}
2... e6 {[%clk 0:02:55.8]} 3. g3 {[%clk 0:02:54.1]} 3... Nc6 {[%clk 0:02:54.6]}
4. Bg2 {[%clk 0:02:51.4]} 4... Nf6 {[%clk 0:02:45.8]} 5. d3 {[%clk 0:02:51.2]}
5... d5 {[%clk 0:02:42.2]} 6. Qe2 {[%clk 0:02:51.3]} 6... Be7 {[%clk 0:02:41.9]}
7. O-O {[%clk 0:02:44.5]} 7... O-O {[%clk 0:02:41.5]} 8. e5 {[%clk 0:02:43.9]}
8... Nd7 {[%clk 0:02:40.9]} 9. c4 {[%clk 0:02:44.2]} 9... Nb6 {[%clk 0:02:22]}
10. Nc3 {[%clk 0:02:38.3]} 10... f5 {[%clk 0:02:17.1]} 11. exf6 {[%clk
0:02:34.6]} 11... Bxf6 {[%clk 0:02:17.3]} 12. Bf4 {[%clk 0:02:11.5]} 12... Re8
{[%clk 0:01:57.8]} 13. Rfe1 {[%clk 0:01:54.2]} 13... Bd7 {[%clk 0:01:41.2]} 14.
Ne5 {[%clk 0:01:38.2]} 14... Nd4 {[%clk 0:01:40]} 15. Qd2 {[%clk 0:01:31.6]}
15... g5 {[%clk 0:01:22.1]} 16. Nxd7 {[%clk 0:01:24.2]} 16... Nxd7 {[%clk
0:01:22.1]} 17. Be3 {[%clk 0:01:18.4]} 17... Nb6 {[%clk 0:01:10.1]} 18. Bxd4
{[%clk 0:00:58]} 18... cxd4 {[%clk 0:01:03.7]} 19. Nb5 {[%clk 0:00:43.4]} 19...
dxc4 {[%clk 0:01:00.9]} 20. Bxb7 {[%clk 0:00:41.1]} 20... Rb8 {[%clk 0:00:58.9]}
21. Bc6 {[%clk 0:00:39.9]} 21... Re7 {[%clk 0:00:52.8]} 22. Be4 {[%clk
0:00:34.5]} 22... a6 {[%clk 0:00:44.5]} 23. Na3 {[%clk 0:00:29.6]} 23... c3
{[%clk 0:00:44.8]} 24. Qe2 {[%clk 0:00:15.3]} 24... Qd6 {[%clk 0:00:35.4]} 25.
Nc4 {[%clk 0:00:09.3]} 25... Nxc4 {[%clk 0:00:35.2]} 26. dxc4 {[%clk 0:00:10.2]}
26... Rxb2 {[%clk 0:00:35.7]} 27. Qh5 {[%clk 0:00:09.1]} 27... d3 {[%clk
0:00:32]} 28. Rad1 {[%clk 0:00:07.2]} 28... d2 {[%clk 0:00:31.5]} 29. Re3 {[%clk
0:00:03.8]} 29... c2 {[%clk 0:00:31.3]} 30. Bxc2 {[%clk 0:00:03.4]} 30... Rxc2
{[%clk 0:00:31.7]} 31. Rf3 {[%clk 0:00:03.3]} 31... Qe5 {[%clk 0:00:28.7]} 32.
Kg2 {[%clk 0:00:02.7]} 32... Qe4 {[%clk 0:00:25]} 33. Qh6 {[%clk 0:00:01.6]}
33... g4 {[%clk 0:00:22.7]} 0-1

[Event "Late-Titled-Tuesday-Blitz-February-20-2024"]
[Site "Chess.com"]
[Date "2024.02.20"]
[Round "5"]
[White "SHIVACalypso"]
[Black "rcmz"]
[Result "1-0"]
[WhiteElo "2502"]
[BlackElo "2195"]
[TimeControl "180+1"]
[EndTime "14:55:27 PST"]
[Termination "SHIVACalypso won on time"]

1. d4 {[%clk 0:03:00.9]} 1... d6 {[%clk 0:02:58.6]} 2. e4 {[%clk 0:02:58.6]}
2... Nd7 {[%clk 0:02:58.5]} 3. c4 {[%clk 0:02:52.9]} 3... h6 {[%clk 0:02:57.5]}
4. Nc3 {[%clk 0:02:52.6]} 4... c6 {[%clk 0:02:56.6]} 5. Be3 {[%clk 0:02:52.1]}
5... g5 {[%clk 0:02:55.5]} 6. Qd2 {[%clk 0:02:51.9]} 6... Bg7 {[%clk 0:02:54.2]}
7. Be2 {[%clk 0:02:46.8]} 7... Qa5 {[%clk 0:02:52.4]} 8. h4 {[%clk 0:02:45.2]}
8... gxh4 {[%clk 0:02:42.1]} 9. Nf3 {[%clk 0:02:45.2]} 9... Nf8 {[%clk
0:02:38.7]} 10. Nxh4 {[%clk 0:02:44.5]} 10... Nf6 {[%clk 0:02:32.4]} 11. O-O-O
{[%clk 0:02:34.2]} 11... Ng4 {[%clk 0:02:26.4]} 12. Nf5 {[%clk 0:02:27.4]} 12...
Bxf5 {[%clk 0:02:19.2]} 13. exf5 {[%clk 0:02:27.5]} 13... Qxf5 {[%clk
0:02:13.8]} 14. Bxg4 {[%clk 0:02:17.7]} 14... Qxg4 {[%clk 0:02:12.4]} 15. f3
{[%clk 0:02:18.6]} 15... Qg6 {[%clk 0:02:09.8]} 16. Rde1 {[%clk 0:02:14.3]}
16... O-O-O {[%clk 0:01:30.2]} 17. Ne4 {[%clk 0:02:12.1]} 17... Kb8 {[%clk
0:01:20.6]} 18. Rh3 {[%clk 0:02:00.6]} 18... h5 {[%clk 0:00:59.2]} 19. Reh1
{[%clk 0:01:59]} 19... Ne6 {[%clk 0:00:53]} 20. Rg3 {[%clk 0:01:41.8]} 20... Qf5
{[%clk 0:00:47.8]} 21. d5 {[%clk 0:01:38.4]} 21... cxd5 {[%clk 0:00:46.1]} 22.
cxd5 {[%clk 0:01:37.3]} 22... Rc8+ {[%clk 0:00:44.5]} 23. Kb1 {[%clk 0:01:35.7]}
23... Be5 {[%clk 0:00:42.5]} 24. Rgh3 {[%clk 0:01:23.6]} 24... Nc5 {[%clk
0:00:33.3]} 25. Bxc5 {[%clk 0:01:21.8]} 25... dxc5 {[%clk 0:00:26.8]} 26. Qc2
{[%clk 0:01:11.4]} 26... Bd4 {[%clk 0:00:16.6]} 27. Ng3 {[%clk 0:00:59]} 27...
Qxd5 {[%clk 0:00:14]} 28. Rxh5 {[%clk 0:00:56.3]} 28... Rxh5 {[%clk 0:00:13]}
29. Rxh5 {[%clk 0:00:57.2]} 29... Qd6 {[%clk 0:00:10.7]} 30. Ne4 {[%clk
0:00:57.4]} 30... Qf4 {[%clk 0:00:09.3]} 31. Nxc5 {[%clk 0:00:46.2]} 31... b6
{[%clk 0:00:08]} 32. Rf5 {[%clk 0:00:30.7]} 32... Qd6 {[%clk 0:00:01.2]} 33.
Na6+ {[%clk 0:00:18]} 1-0

[Event "Late-Titled-Tuesday-Blitz-February-20-2024"]
[Site "Chess.com"]
[Date "2024.02.20"]
[Round "5"]
[White "sergoy"]
[Black "chegueps"]
[Result "1-0"]
[WhiteElo "2993"]
[BlackElo "2665"]
[TimeControl "180+1"]
[EndTime "14:55:29 PST"]
[Termination "sergoy won on time"]

1. d4 {[%clk 0:03:00.9]} 1... Nf6 {[%clk 0:02:55.9]} 2. c4 {[%clk 0:03:01.5]}
2... g6 {[%clk 0:02:54.1]} 3. Nc3 {[%clk 0:03:00.9]} 3... Bg7 {[%clk 0:02:54.8]}
4. e4 {[%clk 0:03:01.3]} 4... d6 {[%clk 0:02:55.5]} 5. Nf3 {[%clk 0:03:01.7]}
5... O-O {[%clk 0:02:56.2]} 6. Be2 {[%clk 0:03:02.4]} 6... e5 {[%clk 0:02:56.6]}
7. O-O {[%clk 0:03:02.8]} 7... Bg4 {[%clk 0:02:57.3]} 8. d5 {[%clk 0:02:49.6]}
8... a5 {[%clk 0:02:56.8]} 9. Be3 {[%clk 0:02:44.2]} 9... Na6 {[%clk 0:02:56.2]}
10. Qc2 {[%clk 0:02:41]} 10... Bd7 {[%clk 0:02:41]} 11. b3 {[%clk 0:02:30.8]}
11... Ng4 {[%clk 0:02:38.4]} 12. Bg5 {[%clk 0:02:31.2]} 12... f6 {[%clk
0:02:38.2]} 13. Bh4 {[%clk 0:02:31.6]} 13... Nh6 {[%clk 0:02:31.4]} 14. a3
{[%clk 0:02:25.9]} 14... g5 {[%clk 0:02:23.4]} 15. Bg3 {[%clk 0:02:26.1]} 15...
Nf7 {[%clk 0:02:20]} 16. Nd2 {[%clk 0:02:24.9]} 16... Qe7 {[%clk 0:02:13.8]} 17.
Rab1 {[%clk 0:02:24.5]} 17... Rfb8 {[%clk 0:02:07.5]} 18. b4 {[%clk 0:02:24.1]}
18... axb4 {[%clk 0:02:07.8]} 19. axb4 {[%clk 0:02:25]} 19... c5 {[%clk
0:02:07.9]} 20. bxc5 {[%clk 0:02:05.8]} 20... Nxc5 {[%clk 0:02:07.1]} 21. Nb3
{[%clk 0:02:02.4]} 21... b6 {[%clk 0:02:00.5]} 22. Nxc5 {[%clk 0:02:00.4]} 22...
dxc5 {[%clk 0:01:50.7]} 23. Nb5 {[%clk 0:02:00.8]} 23... Bxb5 {[%clk 0:01:49.5]}
24. Rxb5 {[%clk 0:01:57.2]} 24... Nd6 {[%clk 0:01:48.8]} 25. Rb2 {[%clk
0:01:55.9]} 25... f5 {[%clk 0:00:58]} 26. exf5 {[%clk 0:01:54]} 26... e4 {[%clk
0:00:58.9]} 27. Rb3 {[%clk 0:01:47.8]} 27... Be5 {[%clk 0:00:59]} 28. Bg4 {[%clk
0:01:48.2]} 28... Ra4 {[%clk 0:00:55.8]} 29. Rxb6 {[%clk 0:01:43.8]} 29... Rxb6
{[%clk 0:00:50]} 30. Qxa4 {[%clk 0:01:43.8]} 30... e3 {[%clk 0:00:42.4]} 31.
Qa8+ {[%clk 0:01:11.7]} 31... Kg7 {[%clk 0:00:40.1]} 32. Bxe5+ {[%clk
0:00:52.7]} 32... Qxe5 {[%clk 0:00:39.9]} 33. Qa7+ {[%clk 0:00:53.3]} 33... Rb7
{[%clk 0:00:37.8]} 34. Qxc5 {[%clk 0:00:53.6]} 34... exf2+ {[%clk 0:00:12.8]}
35. Qxf2 {[%clk 0:00:54.5]} 35... Ne4 {[%clk 0:00:09.1]} 36. Qe3 {[%clk
0:00:49.6]} 36... Rb3 {[%clk 0:00:05.5]} 37. Qxb3 {[%clk 0:00:33.1]} 37... Nd2
{[%clk 0:00:02.2]} 38. Qd3 {[%clk 0:00:27.5]} 1-0

[Event "Late-Titled-Tuesday-Blitz-February-20-2024"]
[Site "Chess.com"]
[Date "2024.02.20"]
[Round "5"]
[White "NtcPou"]
[Black "jcmesafischer"]
[Result "0-1"]
[WhiteElo "2016"]
[BlackElo "2372"]
[TimeControl "180+1"]
[EndTime "14:55:29 PST"]
[Termination "jcmesafischer won by resignation"]

1. e4 {[%clk 0:03:00.9]} 1... c5 {[%clk 0:01:54.3]} 2. Nf3 {[%clk 0:02:59.1]}
2... d6 {[%clk 0:01:54.3]} 3. Bb5+ {[%clk 0:02:59.3]} 3... Bd7 {[%clk
0:01:54.1]} 4. Bxd7+ {[%clk 0:02:59.2]} 4... Qxd7 {[%clk 0:01:55]} 5. c4 {[%clk
0:02:59.2]} 5... g6 {[%clk 0:01:54.5]} 6. d4 {[%clk 0:02:55.8]} 6... cxd4 {[%clk
0:01:55.4]} 7. Nxd4 {[%clk 0:02:55.9]} 7... Bg7 {[%clk 0:01:55.7]} 8. Nc3 {[%clk
0:02:54.8]} 8... Nc6 {[%clk 0:01:55.3]} 9. Be3 {[%clk 0:02:54.1]} 9... Nf6
{[%clk 0:01:55]} 10. f3 {[%clk 0:02:54.3]} 10... O-O {[%clk 0:01:54]} 11. O-O
{[%clk 0:02:53.9]} 11... Rfc8 {[%clk 0:01:53]} 12. b3 {[%clk 0:02:47]} 12... e6
{[%clk 0:01:47.2]} 13. Qd2 {[%clk 0:02:39.7]} 13... d5 {[%clk 0:01:46.1]} 14.
Nxc6 {[%clk 0:02:02.7]} 14... bxc6 {[%clk 0:01:44.2]} 15. Rad1 {[%clk
0:01:56.1]} 15... Qc7 {[%clk 0:01:22.9]} 16. exd5 {[%clk 0:01:42.6]} 16... cxd5
{[%clk 0:01:13.9]} 17. Nb5 {[%clk 0:01:23.8]} 17... Qc6 {[%clk 0:00:49]} 18.
Nxa7 {[%clk 0:01:17.6]} 18... Rxa7 {[%clk 0:00:47.5]} 19. Bxa7 {[%clk
0:01:18.2]} 19... dxc4 {[%clk 0:00:47.5]} 20. bxc4 {[%clk 0:01:10.2]} 20... Qxc4
{[%clk 0:00:33.4]} 21. Rc1 {[%clk 0:00:59.8]} 21... Qa6 {[%clk 0:00:32.4]} 22.
Rxc8+ {[%clk 0:00:57.8]} 22... Qxc8 {[%clk 0:00:33.3]} 23. Rc1 {[%clk
0:00:55.1]} 23... Qa8 {[%clk 0:00:31.9]} 24. Bf2 {[%clk 0:00:29.1]} 24... Nd5
{[%clk 0:00:21.8]} 25. h4 {[%clk 0:00:26.9]} 25... h5 {[%clk 0:00:20.6]} 26. Bd4
{[%clk 0:00:20.9]} 26... Bf8 {[%clk 0:00:13.8]} 27. Ra1 {[%clk 0:00:12.1]} 27...
Qa4 {[%clk 0:00:11]} 28. a3 {[%clk 0:00:10.8]} 28... Bh6 {[%clk 0:00:06.8]} 29.
Qd3 {[%clk 0:00:09.2]} 29... Nf4 {[%clk 0:00:06.3]} 30. Qc3 {[%clk 0:00:08.8]}
30... Ne2+ {[%clk 0:00:05.8]} 0-1

[Event "Late-Titled-Tuesday-Blitz-February-20-2024"]
[Site "Chess.com"]
[Date "2024.02.20"]
[Round "5"]
[White "otrov-11"]
[Black "a-z30"]
[Result "1-0"]
[WhiteElo "2601"]
[BlackElo "2393"]
[TimeControl "180+1"]
[EndTime "14:55:30 PST"]
[Termination "otrov-11 won on time"]

1. d4 {[%clk 0:03:00.9]} 1... d5 {[%clk 0:02:57.2]} 2. c4 {[%clk 0:03:01]} 2...
e6 {[%clk 0:02:57]} 3. g3 {[%clk 0:03:01.6]} 3... Nf6 {[%clk 0:02:56.6]} 4. Nf3
{[%clk 0:03:02.2]} 4... c5 {[%clk 0:02:56.9]} 5. Bg2 {[%clk 0:03:02.9]} 5... Nc6
{[%clk 0:02:56.5]} 6. cxd5 {[%clk 0:03:03]} 6... exd5 {[%clk 0:02:56.3]} 7. O-O
{[%clk 0:03:03.3]} 7... Be7 {[%clk 0:02:56.5]} 8. dxc5 {[%clk 0:03:02.9]} 8...
Bxc5 {[%clk 0:02:56.2]} 9. Nc3 {[%clk 0:03:03.6]} 9... O-O {[%clk 0:02:55.8]}
10. Bg5 {[%clk 0:03:04.3]} 10... d4 {[%clk 0:02:55.5]} 11. Na4 {[%clk
0:02:58.4]} 11... Be7 {[%clk 0:02:52.7]} 12. Rc1 {[%clk 0:02:59]} 12... Be6
{[%clk 0:02:45.5]} 13. a3 {[%clk 0:02:58.8]} 13... Bd5 {[%clk 0:02:35.5]} 14. b4
{[%clk 0:02:51.2]} 14... h6 {[%clk 0:02:24.3]} 15. Bxf6 {[%clk 0:02:50.7]} 15...
Bxf6 {[%clk 0:02:25.2]} 16. Nc5 {[%clk 0:02:51.2]} 16... b6 {[%clk 0:02:14.7]}
17. Nd3 {[%clk 0:02:51.6]} 17... Re8 {[%clk 0:02:05.1]} 18. Nf4 {[%clk
0:02:51.6]} 18... Be4 {[%clk 0:02:03.3]} 19. Ne1 {[%clk 0:02:40.7]} 19... Bxg2
{[%clk 0:01:53.6]} 20. Nfxg2 {[%clk 0:02:35.1]} 20... Rc8 {[%clk 0:01:54.5]} 21.
Nd3 {[%clk 0:02:33]} 21... Qd5 {[%clk 0:01:37.2]} 22. Qd2 {[%clk 0:02:11.4]}
22... Bg5 {[%clk 0:01:29.1]} 23. f4 {[%clk 0:01:48.2]} 23... Bf6 {[%clk
0:01:24.3]} 24. Qb2 {[%clk 0:01:42.5]} 24... Qe4 {[%clk 0:01:17.1]} 25. Rfe1
{[%clk 0:01:42.5]} 25... Ne7 {[%clk 0:01:15.3]} 26. Rxc8 {[%clk 0:01:36.6]}
26... Rxc8 {[%clk 0:01:14.7]} 27. Qb3 {[%clk 0:01:16.6]} 27... Rc3 {[%clk
0:01:10.1]} 28. Qa4 {[%clk 0:01:17.3]} 28... Nd5 {[%clk 0:00:52]} 29. Qxa7
{[%clk 0:01:11.2]} 29... Ne3 {[%clk 0:00:50.5]} 30. Nxe3 {[%clk 0:01:11.8]}
30... Qxe3+ {[%clk 0:00:50.7]} 31. Kf1 {[%clk 0:01:12.5]} 31... h5 {[%clk
0:00:24.7]} 32. Qa8+ {[%clk 0:01:07.6]} 32... Kh7 {[%clk 0:00:23.7]} 33. Rd1
{[%clk 0:01:05.9]} 33... Rc2 {[%clk 0:00:20.3]} 34. Qg2 {[%clk 0:00:58.9]} 34...
h4 {[%clk 0:00:17.4]} 35. Qf2 {[%clk 0:00:57.7]} 35... hxg3 {[%clk 0:00:12.6]}
36. Qxe3 {[%clk 0:00:55.2]} 36... dxe3 {[%clk 0:00:13.5]} 37. hxg3 {[%clk
0:00:55.8]} 37... Ra2 {[%clk 0:00:13.1]} 38. Rb1 {[%clk 0:00:51.1]} 38... Rxa3
{[%clk 0:00:12.9]} 39. Kg2 {[%clk 0:00:51.7]} 39... Bd4 {[%clk 0:00:10.6]} 40.
Kf3 {[%clk 0:00:52.3]} 40... Ra2 {[%clk 0:00:10.4]} 41. g4 {[%clk 0:00:46.8]}
41... g6 {[%clk 0:00:09.3]} 42. Rc1 {[%clk 0:00:46]} 42... Kg7 {[%clk
0:00:06.8]} 43. Rc4 {[%clk 0:00:46.6]} 43... Ba1 {[%clk 0:00:03.4]} 44. Kxe3
{[%clk 0:00:47]} 44... Ra4 {[%clk 0:00:02.6]} 45. Rc6 {[%clk 0:00:45.8]} 45...
b5 {[%clk 0:00:01.7]} 46. Rb6 {[%clk 0:00:42.9]} 1-0